bitfinex/quotes_BTCUSD_20250219
["timestamp","ask_amount","ask_price","bid_price","bid_amount"]
[1739977186479,0.01633491,95950.0,95936.0,0.00823996]
[1739977186693,0.0233712,95944.0,95935.0,0.00824174]
[1739977186892,0.01633491,95950.0,95934.0,0.10250365]
[1739977186893,0.01633491,95950.0,95937.0,0.00823819]
[1739977187070,0.0236874,95944.0,95938.0,0.10354587]
[1739977187446,0.01633491,95950.0,95938.0,0.11074006]
[1739977187614,0.01924844,95943.0,95938.0,0.11074006]
[1739977188759,0.01924844,95942.0,95938.0,0.11374006]
[1739977188972,0.01924844,95942.0,95938.0,0.01523641]
[1739977189104,0.306349,95939.0,95938.0,0.01223641]
[1739977189309,0.15,95938.0,95916.0,0.0787]
[1739977189545,0.156355,95936.0,95917.0,0.11242598]
[1739977189741,0.306349,95939.0,95938.0,0.004]
[1739977189944,0.306349,95939.0,95938.0,0.01]
[1739977190203,0.15,95939.0,95938.0,0.01]
[1739977190370,0.15,95939.0,95938.0,0.004]
[1739977190936,0.15,95939.0,95917.0,0.11138365]
[1739977191137,0.15,95939.0,95918.0,0.00104231]
[1739977191343,0.15,95939.0,95919.0,0.10250365]
[1739977191542,0.15,95939.0,95938.0,0.0004257]
[1739977191961,0.02317163,95944.0,95938.0,0.0004257]
[1739977192160,0.0008514,95945.0,95939.0,0.0767]
[1739977192558,0.02354653,95945.0,95940.0,0.00823286]
[1739977192772,0.0008514,95945.0,95940.0,0.11073651]
[1739977194656,0.02421363,95945.0,95941.0,0.00104216]
[1739977194988,0.0008514,95945.0,95941.0,0.00927324]
[1739977195194,0.0008514,95945.0,95942.0,0.10250365]
[1739977195603,0.0008514,95945.0,95943.0,0.00822753]
[1739977195807,0.02393076,95945.0,95943.0,0.00822753]
[1739977196012,0.0008514,95945.0,95944.0,0.10250365]
[1739977196365,0.0008514,95945.0,95944.0,0.1107294]
[1739977196692,0.02376111,95945.0,95944.0,0.1107294]
[1739977197106,0.04306241,95945.0,95944.0,0.1107294]
[1739977197816,0.04406241,95945.0,95944.0,0.00822575]
[1739977198373,0.04406241,95945.0,95944.0,0.01522575]
[1739977198574,0.04406241,95945.0,95944.0,0.02122575]
[1739977198786,0.04406241,95945.0,95944.0,0.01422575]
[1739977198984,0.04406241,95945.0,95944.0,0.02022575]
[1739977199201,0.04506241,95945.0,95944.0,0.02022575]
[1739977199419,0.04506241,95945.0,95944.0,0.01422575]
[1739977199608,0.04506241,95945.0,95944.0,0.01522575]
[1739977200055,0.04406241,95945.0,95944.0,0.01522575]
[1739977200255,0.04406241,95945.0,95944.0,0.1177294]
[1739977201232,0.04506241,95945.0,95944.0,0.1237294]
[1739977201607,0.04506241,95945.0,95944.0,0.01522575]
[1739977202031,0.04506241,95945.0,95944.0,0.01098146]
[1739977202032,0.19506241,95945.0,95944.0,0.01098146]
[1739977202410,0.19506241,95945.0,95944.0,0.01798146]
[1739977202646,0.35240141,95945.0,95944.0,0.01798146]
[1739977203307,0.001,95945.0,95944.0,0.01798146]
[1739977203739,0.157339,95945.0,95944.0,0.01798146]
[1739977204152,0.18043569,95945.0,95944.0,0.01798146]
[1739977204363,0.02494809,95945.0,95944.0,0.01798146]
[1739977204743,0.18128709,95945.0,95944.0,0.01798146]
[1739977204944,0.02494809,95945.0,95944.0,0.01798146]
[1739977206323,0.17494809,95945.0,95944.0,0.01798146]
[1739977207155,0.33128709,95945.0,95944.0,0.01798146]
[1739977207975,0.18128709,95945.0,95944.0,0.01798146]
[1739977208755,0.04300712,95946.0,95944.0,0.01798146]
[1739977208979,0.156339,95945.0,95944.0,0.01798146]
[1739977209218,0.156339,95945.0,95944.0,0.00398146]
[1739977209415,0.208447,95948.0,95944.0,0.00398146]
[1739977209624,0.156339,95945.0,95944.0,0.00398146]
[1739977210047,0.80147547,95945.0,95944.0,0.00498146]
[1739977210221,0.40434273,95945.0,95944.0,0.001]
[1739977210569,0.16424347,95945.0,95944.0,0.001]
[1739977211639,0.16116215,95945.0,95944.0,0.001]
[1739977211848,0.156349,95939.0,95938.0,0.0004257]
[1739977212075,0.15,95939.0,95938.0,0.0004257]
[1739977212294,0.02336164,95948.0,95938.0,0.17982935]
[1739977212540,0.02336164,95948.0,95943.0,0.08338849]
[1739977212741,0.01633314,95972.0,95944.0,0.10554565]
[1739977212997,0.0929314,95986.0,95946.0,0.0499]
[1739977213206,0.0929314,95986.0,95954.0,0.08338849]
[1739977213417,0.0929314,95986.0,95966.0,0.0817]
[1739977213631,0.0929314,95986.0,95967.0,0.00104173]
[1739977213856,0.0929314,95986.0,95968.0,0.09624085]
[1739977213857,0.1164015,95986.0,95968.0,0.09624085]
[1739977214058,0.1164015,95986.0,95978.0,0.0798]
[1739977214279,0.1164015,95986.0,95979.0,0.00892]
[1739977215113,0.15,95985.0,95979.0,0.00892]
[1739977215565,0.0234701,95986.0,95980.0,0.10354542]
[1739977215772,0.0234701,95986.0,95980.0,0.10250365]
[1739977215976,0.01632731,96009.0,95980.0,0.10250365]
[1739977216193,0.150851,96001.0,95980.0,0.10250365]
[1739977216398,0.150851,96001.0,95979.0,0.01296]
[1739977216399,0.15,95981.0,95979.0,0.01296]
[1739977216605,0.15,95981.0,95979.0,0.01796]
[1739977216823,0.15,95981.0,95979.0,0.01296]
[1739977217029,0.15,95981.0,95980.0,0.10250365]
[1739977217236,0.00077817,95999.0,95979.0,0.004]
[1739977217448,0.15627,95988.0,95972.0,0.00896]
[1739977217661,0.00788674,95994.0,95980.0,0.00750299]
[1739977217874,0.156267,95990.0,95981.0,0.10250365]
[1739977218105,0.00788674,95994.0,95981.0,0.11000487]
[1739977218526,0.01632757,95998.0,95982.0,0.00104172]
[1739977218733,0.02362733,96020.0,95983.0,0.17750365]
[1739977218945,0.208322,96005.0,95983.0,0.18500132]
[1739977219158,0.156246,96003.0,95983.0,0.18500132]
[1739977219379,0.15,96004.0,95983.0,0.18500132]
[1739977219762,0.15,96004.0,95983.0,0.17750365]
[1739977219992,0.15625,96000.0,95984.0,0.00749589]
[1739977220198,0.208326,96003.0,95985.0,0.10250365]
[1739977220405,0.00784836,96006.0,95986.0,0.00749234]
[1739977220632,0.15627,95988.0,95986.0,0.00749234]
[1739977220878,0.15,95987.0,95986.0,0.00749234]
[1739977221083,0.15,95987.0,95983.0,0.075]
[1739977221288,0.15,95985.0,95983.0,0.075]
[1739977221497,0.15,95984.0,95983.0,0.078]
[1739977221704,0.15,95984.0,95983.0,0.076]
[1739977221946,0.15,95984.0,95983.0,0.08349767]
[1739977222149,0.15,95984.0,95983.0,0.18500132]
[1739977222576,0.208351,95992.0,95983.0,0.09649767]
[1739977222788,0.156275,95985.0,95983.0,0.09649767]
[1739977222990,0.156275,95985.0,95983.0,0.007]
[1739977223438,0.156275,95985.0,95983.0,0.00362721]
[1739977224594,0.156298,95971.0,95969.0,0.0814]
[1739977224816,0.0485,95997.0,95956.0,0.0495]
[1739977224817,0.15,95978.0,95957.0,0.0764]
[1739977225017,0.15,95958.0,95957.0,0.01818475]
[1739977225414,0.0162933,95977.0,95944.0,0.0567857]
[1739977225415,0.15,95945.0,95944.0,0.0567857]
[1739977225670,0.15,95945.0,95944.0,0.0093857]
[1739977226422,0.0485,95997.0,95944.0,0.11188935]
[1739977226423,0.00794252,95958.0,95944.0,0.11188935]
[1739977226676,0.0485,95997.0,95945.0,0.10250365]
[1739977226677,0.04927817,95997.0,95945.0,0.10250365]
[1739977226874,0.306307,95965.0,95945.0,0.10250365]
[1739977227075,0.15,95963.0,95945.0,0.10250365]
[1739977227312,0.15,95962.0,95945.0,0.10250365]
[1739977227568,0.001,95958.0,95945.0,0.10250365]
[1739977227790,0.15,95960.0,95945.0,0.10150365]
[1739977227989,0.156336,95947.0,95946.0,0.009]
[1739977228123,0.15,95960.0,95944.0,0.0004257]
[1739977228348,0.15,95950.0,95944.0,0.10292935]
[1739977228565,0.15,95947.0,95945.0,0.004]
[1739977228766,0.156336,95947.0,95945.0,0.004]
[1739977228961,0.15,95946.0,95944.0,0.0004257]
[1739977229173,0.306338,95946.0,95944.0,0.0004257]
[1739977229354,0.306338,95946.0,95944.0,0.0054257]
[1739977229560,0.15,95946.0,95944.0,0.0054257]
[1739977229977,0.15,95950.0,95944.0,0.0054257]
[1739977230185,0.15,95950.0,95946.0,0.005]
[1739977230596,0.15,95950.0,95944.0,0.0054257]
[1739977230816,0.15,95950.0,95947.0,0.0812]
[1739977231022,0.0489,95992.0,95948.0,0.10150365]
[1739977231234,0.0163313,95973.0,95948.0,0.10150365]
[1739977231441,0.151,95950.0,95947.0,0.0812]
[1739977231846,0.152,95950.0,95947.0,0.0812]
[1739977232049,0.153,95950.0,95947.0,0.0862]
[1739977232463,0.152,95950.0,95947.0,0.0862]
[1739977232657,0.003,95950.0,95947.0,0.0932]
[1739977233066,0.15,95948.0,95947.0,0.012]
[1739977234094,0.306334,95948.0,95947.0,0.005]
[1739977234306,0.307334,95948.0,95947.0,0.007]
[1739977234720,0.308334,95948.0,95947.0,0.013]
[1739977237163,0.152,95948.0,95947.0,0.013]
[1739977237904,0.308334,95948.0,95947.0,0.013]
[1739977238114,0.152,95948.0,95947.0,0.013]
[1739977238732,0.152,95948.0,95947.0,0.11550365]
[1739977239412,0.002,95948.0,95947.0,0.23800365]
[1739977239662,0.002,95948.0,95947.0,0.24696365]
[1739977240569,0.002,95948.0,95947.0,0.23800365]
[1739977240678,0.0008508,96015.0,95947.0,0.24696365]
[1739977240679,0.208316,96008.0,95947.0,0.24696365]
[1739977240953,0.01632911,95995.0,95948.0,0.10354553]
[1739977241124,0.01907615,95994.0,95950.0,0.0756]
[1739977241323,0.01632911,95995.0,95955.0,0.10250365]
[1739977241555,0.0929314,95999.0,95957.0,0.0799]
[1739977241758,0.15628,95982.0,95958.0,0.10354545]
[1739977241960,0.15,95976.0,95958.0,0.10250365]
[1739977242167,0.156279,95983.0,95958.0,0.10250365]
[1739977242370,0.156278,95983.0,95959.0,0.00104182]
[1739977242739,0.00790928,95978.0,95960.0,0.10354547]
[1739977242951,0.003,95994.0,95962.0,0.0485]
[1739977243158,0.003,95994.0,95963.0,0.18144536]
[1739977243368,0.208348,95993.0,95963.0,0.18144536]
[1739977243562,0.15,95987.0,95963.0,0.18144536]
[1739977243763,0.00789753,95984.0,95963.0,0.18040365]
[1739977244356,0.15,95983.0,95963.0,0.18040365]
[1739977244964,0.15,95983.0,95963.0,0.18440365]
[1739977245317,0.15,95983.0,95964.0,0.07854178]
[1739977245522,0.15,95993.0,95965.0,0.10250365]
[1739977245725,0.0008514,95995.0,95965.0,0.10250365]
[1739977245925,0.0008514,95995.0,95965.0,0.10354537]
[1739977246439,0.156274,95985.0,95965.0,0.10354537]
[1739977246645,0.0008514,95995.0,95965.0,0.10354537]
[1739977246646,0.0008514,95995.0,95966.0,0.00104177]
[1739977246855,0.00772173,95988.0,95968.0,0.0795]
[1739977247056,0.0008514,95995.0,95972.0,0.08338849]
[1739977247286,0.0008514,95995.0,95973.0,0.10354531]
[1739977247685,0.15,95994.0,95973.0,0.10250365]
[1739977248093,0.15,95994.0,95977.0,0.0205036]
[1739977248319,0.15,95994.0,95978.0,0.10250365]
[1739977248558,0.15,95994.0,95979.0,0.00896]
[1739977248746,0.0008514,95995.0,95980.0,0.10250365]
[1739977249274,0.15626,95994.0,95980.0,0.10250365]
[1739977249628,0.00800206,95993.0,95980.0,0.10250365]
[1739977250629,0.0008514,95995.0,95981.0,0.07914157]
[1739977250832,0.0008514,95995.0,95982.0,0.10250365]
[1739977251864,0.306277,95983.0,95982.0,0.10250365]
[1739977252068,0.306279,95982.0,95981.0,0.003]
[1739977252496,0.306279,95982.0,95962.0,0.0493]
[1739977252497,0.15,95982.0,95962.0,0.0493]
[1739977252695,0.15,95980.0,95961.0,0.00892]
[1739977252944,0.15,95965.0,95961.0,0.00892]
[1739977253091,0.00077817,95985.0,95961.0,0.00892]
[1739977253292,0.15,95967.0,95961.0,0.00892]
[1739977254068,0.15,95967.0,95953.0,0.02115093]
[1739977254210,0.15,95967.0,95954.0,0.10250365]
[1739977254408,0.15,95971.0,95954.0,0.10250365]
[1739977254611,0.15,95969.0,95963.0,0.0004255]
[1739977254891,0.208391,95974.0,95963.0,0.0004255]
[1739977255126,0.15,95964.0,95963.0,0.0004255]
[1739977255326,0.15800755,95964.0,95963.0,0.0004255]
[1739977255667,0.15800755,95964.0,95963.0,0.0074255]
[1739977255871,0.15800755,95964.0,95963.0,0.0004255]
[1739977256369,0.15800755,95964.0,95963.0,0.0074255]
[1739977257597,0.15800755,95964.0,95963.0,0.0144255]
[1739977258845,0.16431555,95964.0,95963.0,0.00607045]
[1739977259055,0.15,95953.0,95952.0,0.20059432]
[1739977259197,0.306326,95953.0,95952.0,0.30309797]
[1739977259407,0.306326,95953.0,95952.0,0.20059432]
[1739977259810,0.306326,95953.0,95952.0,0.11962432]
[1739977260015,0.306334,95948.0,95939.0,0.077]
[1739977260943,0.15,95948.0,95939.0,0.077]
[1739977261144,0.306334,95948.0,95939.0,0.077]
[1739977261308,0.15,95948.0,95939.0,0.077]
[1739977261514,0.151,95948.0,95947.0,0.0064257]
[1739977261718,0.151,95948.0,95947.0,0.10892935]
[1739977262086,0.151,95948.0,95947.0,0.18772935]
[1739977263853,0.151,95948.0,95947.0,0.19372935]
[1739977264069,0.15,95948.0,95947.0,0.10892935]
[1739977264273,0.306334,95948.0,95947.0,0.0134257]
[1739977264491,0.306334,95948.0,95947.0,0.0074257]
[1739977264693,0.306334,95948.0,95947.0,0.0004257]
[1739977264894,0.307334,95948.0,95947.0,0.0144257]
[1739977265302,0.306334,95948.0,95947.0,0.0004257]
[1739977265485,0.306334,95948.0,95947.0,0.0114257]
[1739977265701,0.15,95948.0,95947.0,0.0114257]
[1739977266553,0.15,95948.0,95947.0,0.11392935]
[1739977267377,0.15,95948.0,95947.0,0.0114257]
[1739977267577,0.306334,95948.0,95947.0,0.0114257]
[1739977267790,0.15,95948.0,95947.0,0.0114257]
[1739977267982,0.306334,95948.0,95947.0,0.0114257]
[1739977268365,0.15,95948.0,95947.0,0.0114257]
[1739977268563,0.15,95948.0,95947.0,0.11392935]
[1739977269579,0.0184445,95948.0,95947.0,0.0114257]
[1739977269924,0.156334,95948.0,95947.0,0.0114257]
[1739977271368,0.156339,95945.0,95944.0,0.0004257]
[1739977271796,0.306339,95945.0,95944.0,0.0004257]
[1739977272500,0.306364,95930.0,95928.0,0.00888]
[1739977272707,0.208481,95932.0,95928.0,0.00888]
[1739977272708,0.306365,95929.0,95928.0,0.00888]
[1739977272931,0.306365,95929.0,95928.0,0.11138365]
[1739977273571,0.15,95919.0,95917.0,0.00888]
[1739977273822,0.306381,95919.0,95918.0,0.10250365]
[1739977274029,0.15639,95914.0,95910.0,0.00888]
[1739977274237,0.15639,95914.0,95911.0,0.10250365]
[1739977274442,0.156393,95912.0,95911.0,0.10250365]
[1739977274656,0.05575498,95929.0,95901.0,0.28250564]
[1739977274865,0.306409,95902.0,95901.0,0.04657864]
[1739977275081,0.306409,95902.0,95901.0,0.01516215]
[1739977275715,0.15,95902.0,95901.0,0.01516215]
[1739977275922,0.306409,95902.0,95901.0,0.01516215]
[1739977276098,0.306409,95902.0,95901.0,0.00306215]
[1739977276233,0.306409,95902.0,95901.0,0.00806215]
[1739977276863,0.306409,95902.0,95892.0,0.0143982]
[1739977277068,0.15,95882.0,95863.0,0.081]
[1739977277277,0.15,95869.0,95868.0,0.10250365]
[1739977277719,0.15,95850.0,95849.0,0.1084351]
[1739977277938,0.15,95850.0,95849.0,0.10250365]
[1739977278770,0.15,95863.0,95849.0,0.10250365]
[1739977279000,0.15,95863.0,95850.0,0.18593525]
[1739977279421,0.15,95863.0,95851.0,0.00892]
[1739977279618,0.15,95863.0,95852.0,0.10250365]
[1739977279830,0.15,95853.0,95852.0,0.11142365]
[1739977281174,0.15,95853.0,95852.0,0.00892]
[1739977281602,0.151,95853.0,95852.0,0.00892]
[1739977281804,0.152,95853.0,95852.0,0.007]
[1739977282211,0.002,95853.0,95852.0,0.10950365]
[1739977283030,0.002,95853.0,95852.0,0.11054679]
[1739977283222,0.002,95853.0,95852.0,0.10950365]
[1739977283552,0.001,95853.0,95852.0,0.10950365]
[1739977283854,0.002,95853.0,95852.0,0.11554674]
[1739977284084,0.15646,95871.0,95852.0,0.11554659]
[1739977284259,0.15,95874.0,95853.0,0.10250365]
[1739977284460,0.15,95871.0,95854.0,0.0472]
[1739977284684,0.15,95871.0,95855.0,0.10150365]
[1739977285001,0.15,95871.0,95855.0,0.10050365]
[1739977285235,0.306484,95856.0,95855.0,0.10050365]
[1739977285440,0.306489,95853.0,95852.0,0.006]
[1739977285637,0.306489,95853.0,95852.0,0.004]
[1739977285864,0.15,95853.0,95852.0,0.10650365]
[1739977286455,0.15,95853.0,95852.0,0.1075468]
[1739977286661,0.0832,95897.0,95852.0,0.10650365]
[1739977286870,0.0832,95897.0,95848.0,0.00146854]
[1739977286871,0.01634505,95890.0,95855.0,0.003]
[1739977287075,0.15,95861.0,95856.0,0.10250365]
[1739977287286,0.00781036,95880.0,95856.0,0.10250365]
[1739977287481,0.15,95863.0,95856.0,0.10150365]
[1739977287683,0.306483,95857.0,95856.0,0.10150365]
[1739977287888,0.306489,95853.0,95852.0,0.00904]
[1739977288130,0.15,95853.0,95852.0,0.11154365]
[1739977288501,0.15,95853.0,95852.0,0.10250365]
[1739977288754,0.15,95853.0,95852.0,0.18274681]
[1739977289067,0.001,95857.0,95852.0,0.23766747]
[1739977289267,0.001,95857.0,95853.0,0.10354659]
[1739977289470,0.001,95857.0,95853.0,0.10250365]
[1739977290157,0.15,95867.0,95854.0,0.00776026]
[1739977290158,0.15648,95859.0,95854.0,0.00776026]
[1739977290350,0.15,95868.0,95856.0,0.005]
[1739977290565,0.15,95868.0,95857.0,0.10250365]
[1739977290768,0.15,95868.0,95857.0,0.11025857]
[1739977290975,0.15,95865.0,95857.0,0.10925857]
[1739977291396,0.001,95859.0,95858.0,0.00082949]
[1739977291613,0.001,95859.0,95858.0,0.11108628]
[1739977291811,0.15,95865.0,95858.0,0.11108629]
[1739977292027,0.15,95906.0,95859.0,0.10250365]
[1739977292233,0.15,95877.0,95859.0,0.10250365]
[1739977292404,0.15,95877.0,95860.0,0.00774958]
[1739977292638,0.15,95877.0,95861.0,0.10250365]
[1739977293046,0.15,95877.0,95860.0,0.00857877]
[1739977293047,0.0832,95909.0,95864.0,0.0465]
[1739977293259,0.00800241,95891.0,95865.0,0.11107319]
[1739977293467,0.15,95890.0,95865.0,0.11024433]
[1739977293670,0.156462,95870.0,95865.0,0.11024433]
[1739977293791,0.156456,95874.0,95865.0,0.10250365]
[1739977294027,0.3242,95889.0,95865.0,0.10250365]
[1739977294028,0.3242,95889.0,95866.0,0.00773891]
[1739977294205,0.3242,95889.0,95867.0,0.10250365]
[1739977294206,0.156452,95876.0,95867.0,0.10250365]
[1739977294432,0.208576,95888.0,95868.0,0.00773535]
[1739977294660,0.208576,95888.0,95869.0,0.10250365]
[1739977294974,0.3242,95889.0,95869.0,0.10250365]
[1739977295154,0.3242,95889.0,95870.0,0.00104291]
[1739977295155,0.01916276,95875.0,95870.0,0.00104291]
[1739977295290,0.01916276,95875.0,95871.0,0.10250365]
[1739977295666,0.01916276,95875.0,95871.0,0.11023366]
[1739977296164,0.156458,95872.0,95871.0,0.11023366]
[1739977296316,0.156458,95872.0,95871.0,0.00773001]
[1739977296552,0.156458,95872.0,95871.0,0.01273001]
[1739977296723,0.156458,95872.0,95871.0,0.005]
[1739977296922,0.156458,95872.0,95871.0,0.10750365]
[1739977297493,0.306458,95872.0,95871.0,0.01]
[1739977297696,0.156494,95850.0,95848.0,0.0004255]
[1739977297889,0.156494,95850.0,95849.0,0.10292965]
[1739977298112,0.15,95869.0,95849.0,0.10292965]
[1739977298342,0.15,95865.0,95850.0,0.10250365]
[1739977298501,0.156492,95851.0,95850.0,0.10250365]
[1739977299103,0.17565476,95851.0,95850.0,0.10250365]
[1739977299915,0.156494,95850.0,95849.0,0.000426]
[1739977301081,0.31432979,95850.0,95849.0,0.000426]
[1739977301280,0.31432979,95850.0,95828.0,0.00908]
[1739977301281,0.306522,95833.0,95828.0,0.00908]
[1739977301715,0.306522,95833.0,95818.0,0.0795]
[1739977302124,0.306522,95833.0,95813.0,0.0465]
[1739977302538,0.306522,95833.0,95814.0,0.02091846]
[1739977303151,0.35638492,95833.0,95814.0,0.02091846]
[1739977303357,0.15,95830.0,95812.0,0.00908]
[1739977303559,0.19986292,95833.0,95813.0,0.10250365]
[1739977303560,0.15,95817.0,95813.0,0.10250365]
[1739977303974,0.306551,95815.0,95814.0,0.00939777]
[1739977304114,0.156559,95811.0,95809.0,0.01506999]
[1739977304330,0.15,95813.0,95810.0,0.10250365]
[1739977304732,0.15,95813.0,95811.0,0.00940418]
[1739977304960,0.156556,95812.0,95809.0,0.01506999]
[1739977305190,0.15,95813.0,95810.0,0.10250365]
[1739977305413,0.15,95813.0,95811.0,0.00940418]
[1739977305628,0.15,95813.0,95812.0,0.10250365]
[1739977305836,0.306554,95813.0,95812.0,0.11190569]
[1739977306271,0.15,95813.0,95812.0,0.11190569]
[1739977306463,0.15,95813.0,95812.0,0.10250365]
[1739977306672,0.15,95813.0,95812.0,0.11190569]
[1739977306867,0.02537123,95817.0,95812.0,0.11190569]
[1739977307094,0.01925225,95813.0,95812.0,0.11190569]
[1739977307428,0.01925225,95813.0,95812.0,0.20437418]
[1739977307852,0.01925225,95813.0,95812.0,0.20737418]
[1739977308054,0.01925225,95813.0,95812.0,0.20437418]
[1739977308393,0.01925225,95813.0,95812.0,0.20737418]
[1739977308590,0.02025225,95813.0,95812.0,0.21137418]
[1739977308799,0.156512,95839.0,95812.0,0.20229418]
[1739977308984,0.208692,95835.0,95814.0,0.10150365]
[1739977309202,0.156525,95832.0,95815.0,0.00939563]
[1739977309457,0.156525,95832.0,95816.0,0.10150365]
[1739977309803,0.156525,95832.0,95817.0,0.00939136]
[1739977310011,0.156525,95832.0,95818.0,0.10250365]
[1739977310205,0.00788302,95842.0,95818.0,0.10250365]
[1739977310425,0.0251791,95835.0,95819.0,0.00938708]
[1739977310612,0.21656002,95842.0,95820.0,0.10250365]
[1739977310815,0.156513,95839.0,95820.0,0.10254703]
[1739977311027,0.15,95840.0,95821.0,0.00104339]
[1739977311231,0.15,95840.0,95822.0,0.10250365]
[1739977311683,0.306519,95835.0,95822.0,0.10250365]
[1739977311859,0.15,95835.0,95823.0,0.00937853]
[1739977311996,0.306519,95835.0,95824.0,0.10250365]
[1739977312224,0.15,95835.0,95825.0,0.00937426]
[1739977312428,0.15,95841.0,95826.0,0.10250365]
[1739977312626,0.15,95841.0,95826.0,0.10354706]
[1739977313211,0.0249737,95842.0,95827.0,0.00936999]
[1739977313411,0.33217087,95845.0,95828.0,0.10354701]
[1739977313613,0.15,95844.0,95828.0,0.10354701]
[1739977313803,0.15,95842.0,95829.0,0.00936571]
[1739977313941,0.358677,95842.0,95830.0,0.10354702]
[1739977314142,0.15,95838.0,95830.0,0.10354702]
[1739977314341,0.15,95838.0,95830.0,0.10250365]
[1739977314745,0.15,95838.0,95831.0,0.01040483]
[1739977314958,0.02497116,95845.0,95833.0,0.0821]
[1739977315187,0.3242,95857.0,95835.0,0.0476]
[1739977315380,0.156491,95852.0,95836.0,0.10250365]
[1739977315639,0.0008522,95842.0,95836.0,0.11185441]
[1739977315812,0.0008522,95842.0,95837.0,0.00104323]
[1739977316009,0.0008522,95842.0,95838.0,0.11185013]
[1739977316795,0.0008522,95842.0,95839.0,0.00104319]
[1739977317000,0.0008522,95842.0,95840.0,0.10354682]
[1739977317205,0.0008522,95842.0,95840.0,0.11288903]
[1739977317416,0.0008522,95842.0,95841.0,0.10250365]
[1739977317624,0.0008522,95842.0,95841.0,0.19008683]
[1739977317824,0.0008522,95842.0,95841.0,0.20462768]
[1739977318569,0.0018522,95842.0,95841.0,0.21862768]
[1739977318775,0.0018522,95842.0,95841.0,0.21058458]
[1739977318976,0.0008522,95842.0,95841.0,0.20358458]
[1739977319206,0.0008522,95842.0,95841.0,0.21162765]
[1739977319411,0.0008522,95842.0,95841.0,0.21058458]
[1739977319656,0.0008522,95842.0,95841.0,0.24303735]
[1739977319856,0.0008522,95842.0,95841.0,0.21058458]
[1739977320057,0.0008522,95842.0,95841.0,0.21958458]
[1739977320272,0.0008522,95842.0,95841.0,0.19604373]
[1739977320481,0.3083592,95842.0,95841.0,0.12584373]
[1739977320882,0.3083592,95842.0,95841.0,0.014]
[1739977321050,0.3083192,95842.0,95841.0,0.014]
[1739977321255,0.3073192,95842.0,95841.0,0.007]
[1739977321660,0.3083192,95842.0,95841.0,0.014]
[1739977321907,0.3866192,95842.0,95841.0,0.007]
[1739977322121,0.0008122,95842.0,95816.0,0.009]
[1739977322311,0.0008122,95842.0,95817.0,0.10250365]
[1739977322519,0.15,95830.0,95817.0,0.11189501]
[1739977322721,0.15,95824.0,95817.0,0.11189501]
[1739977323039,0.156546,95818.0,95817.0,0.10250365]
[1739977323190,0.306546,95818.0,95817.0,0.11189501]
[1739977324209,0.156548,95817.0,95816.0,0.001]
[1739977324539,0.15,95812.0,95805.0,0.0004255]
[1739977324743,0.15,95814.0,95810.0,0.1035473]
[1739977324943,0.001,95830.0,95812.0,0.10250365]
[1739977325144,0.3242,95832.0,95820.0,0.10250365]
[1739977325348,0.3242,95832.0,95813.0,0.00104342]
[1739977325349,0.0008122,95842.0,95826.0,0.10250365]
[1739977325551,0.0008122,95842.0,95826.0,0.14884688]
[1739977325777,0.0008122,95842.0,95827.0,0.00939161]
[1739977325983,0.15,95833.0,95828.0,0.10250365]
[1739977326387,0.15,95833.0,95829.0,0.00938734]
[1739977326587,0.306525,95831.0,95830.0,0.10250365]
[1739977326815,0.15,95831.0,95830.0,0.10250365]
[1739977327034,0.15,95831.0,95830.0,0.11188885]
[1739977327526,0.32579228,95831.0,95830.0,0.11188885]
[1739977327743,0.33373042,95831.0,95830.0,0.0093852]
[1739977327884,0.15,95821.0,95812.0,0.00904]
[1739977328247,0.15,95823.0,95813.0,0.10250365]
[1739977328438,0.15,95815.0,95813.0,0.11192518]
[1739977329368,0.306553,95814.0,95813.0,0.11192518]
[1739977329805,0.15,95814.0,95813.0,0.11192518]
[1739977330012,0.15,95814.0,95813.0,0.08432404]
[1739977330199,0.15,95815.0,95813.0,0.08528342]
[1739977330363,0.17582028,95814.0,95813.0,0.08528342]
[1739977330571,0.01926728,95814.0,95813.0,0.08528342]
[1739977330771,0.01926728,95814.0,95813.0,0.07680404]
[1739977331105,0.01926728,95814.0,95813.0,0.08528342]
[1739977331422,0.01926728,95814.0,95813.0,0.09228342]
[1739977331625,0.01926728,95814.0,95786.0,0.02]
[1739977331626,0.34346728,95814.0,95797.0,0.02100734]
[1739977331840,0.156599,95786.0,95785.0,0.1427512]
[1739977332045,0.306599,95786.0,95785.0,0.1180673]
[1739977332256,0.306599,95786.0,95785.0,0.09152193]
[1739977332669,0.3323005,95786.0,95785.0,0.09152193]
[1739977332875,0.35155793,95786.0,95785.0,0.09152193]
[1739977333096,0.19495893,95786.0,95785.0,0.09152193]
[1739977333312,0.04495893,95786.0,95785.0,0.19402558]
[1739977333729,0.04495893,95786.0,95785.0,0.20250881]
[1739977334159,0.0257015,95786.0,95785.0,0.20250881]
[1739977334335,0.306599,95786.0,95785.0,0.10000516]
[1739977334566,0.306599,95786.0,95785.0,0.09152193]
[1739977334770,0.306599,95786.0,95785.0,0.10000516]
[1739977334980,0.33197334,95786.0,95785.0,0.09152193]
[1739977335320,0.17537434,95786.0,95785.0,0.004]
[1739977335528,0.54077234,95786.0,95785.0,0.004]
[1739977335971,0.15,95774.0,95768.0,0.00912]
[1739977336185,0.3242,95796.0,95769.0,0.11102966]
[1739977336391,0.156615,95776.0,95769.0,0.11102966]
[1739977336597,0.156618,95775.0,95769.0,0.11102966]
[1739977336802,0.0822,95785.0,95769.0,0.10250365]
[1739977337012,0.156625,95770.0,95769.0,0.10250365]
[1739977337381,0.208807,95782.0,95769.0,0.10250365]
[1739977337551,0.156625,95770.0,95769.0,0.10250365]
[1739977338318,0.15,95772.0,95769.0,0.10250365]
[1739977338525,0.0822,95785.0,95769.0,0.10250365]
[1739977338726,0.0462,95787.0,95785.0,0.004]
[1739977338727,0.3242,95787.0,95785.0,0.004]
[1739977339110,0.1566,95786.0,95769.0,0.11054758]
[1739977339228,0.3242,95787.0,95785.0,0.10250365]
[1739977339458,0.156599,95786.0,95785.0,0.001]